lending/lending_fUSD_20260104
["ID","MTS","AMOUNT","RATE_DAILY","PERIOD"]
[400436658,1767551447995,-647.18,0.00017249,2]
[400436659,1767551448004,-1203.96202527,0.0001726,2]
[400436660,1767551448014,-2695.94183627,0.0001726,2]
[400436661,1767551448023,-433.0,0.00017275,2]
[400436662,1767551448035,-1265.0,0.00017275,2]
[400436663,1767551448044,-1200.0,0.00017275,2]
[400436664,1767551448053,-913.0,0.00017275,2]
[400436665,1767551448064,-4815.0,0.00017275,2]
[400436666,1767551448074,-2434.0,0.00017275,2]
[400436667,1767551448083,-221.57,0.00017288,2]
[400436668,1767551448092,-166.66,0.00017327,2]
[400436669,1767551448102,-205.0,0.00017359,2]
[400436670,1767551448111,-679.0,0.0001736,2]
[400436671,1767551448121,-2084.35,0.00017374,2]
[400436672,1767551448131,-866.0,0.00017432,2]
[400436673,1767551448140,-205.0,0.00017438,2]
[400436674,1767551448151,-706.358544,0.00017438,2]
[400436675,1767551448160,-706.358544,0.00017438,2]
[400436676,1767551448169,-706.358544,0.00017438,2]
[400436677,1767551448180,-706.358535,0.00017438,2]
[400436678,1767551448190,-151.0,0.00017438,2]
[400436679,1767551448201,-151.0,0.00017438,2]
[400436680,1767551448211,-205.0,0.00017473,2]
[400436681,1767551448222,-205.95297079,0.00017489,2]
[400436682,1767551448231,-205.0,0.00017498,2]
[400436683,1767551448240,-714.138811,0.00017499,2]
[400436684,1767551448249,-714.138811,0.00017499,2]
[400436685,1767551448259,-714.138811,0.00017499,2]
[400436686,1767551448268,-714.138811,0.00017499,2]
[400436687,1767551448278,-603.12603829,0.00017534,2]
[400436688,1767551448287,-150.0,0.00017543,2]
[400436689,1767551448296,-150.0,0.00017543,2]
[400436690,1767551448305,-150.0,0.00017543,2]
[400436691,1767551448314,-150.0,0.00017543,2]
[400436692,1767551448323,-150.0,0.00017543,2]
[400436693,1767551448333,-308.802507,0.00017564,2]
[400436694,1767551448342,-308.802507,0.00017564,2]
[400436695,1767551448351,-308.802507,0.00017564,2]
[400436696,1767551448361,-308.802507,0.00017564,2]
[400436697,1767551448370,-268.359197,0.00017564,2]
[400436698,1767551448379,-268.359197,0.00017564,2]
[400436699,1767551448388,-268.359197,0.00017564,2]
[400436700,1767551448397,-268.359197,0.00017564,2]
[400436701,1767551448407,-195.03832556,0.00017564,2]
[400436702,1767551448416,-2500.0,0.00017564,2]
[400436703,1767551448426,-2500.0,0.00017564,2]
[400436704,1767551448435,-1663.91462898,0.00017564,2]
[400436705,1767551448444,-2500.0,0.00017564,2]
[400436706,1767551448490,-2500.0,0.00017564,2]
[400436707,1767551448501,-2500.0,0.00017564,2]
[400436708,1767551448510,-1203.96202527,0.0001758,2]
[400436709,1767551448520,-2695.94183627,0.0001758,2]
[400436710,1767551448530,-166.68,0.00017582,2]
[400436711,1767551448539,-852.9335528,0.00017616,2]
[400436712,1767551448548,-416.46404582,0.00017616,2]
[400436713,1767551448559,-875.58700651,0.00017616,2]
[400436714,1767551448568,-2000.0,0.00017616,2]
[400436715,1767551448577,-1947.97309816,0.00017616,2]
[400436716,1767551448586,-2000.0,0.00017616,2]
[400436717,1767551448595,-2000.0,0.00017616,2]
[400436718,1767551448604,-627.60563936,0.00017616,2]
[400436719,1767551448614,-507.48169535,0.00017616,2]
[400436720,1767551448622,-2000.0,0.00017616,2]
[400436721,1767551448631,-2000.0,0.00017616,2]
[400436722,1767551448641,-1683.19068373,0.00017616,2]
[400436723,1767551448650,-1446.50244283,0.00017616,2]
[400436724,1767551448659,-254.70824503,0.00017616,2]
[400436725,1767551448668,-2000.0,0.00017616,2]
[400436726,1767551448677,-1842.35996457,0.00017616,2]
[400436727,1767551448687,-2000.0,0.00017616,2]
[400436728,1767551448695,-2000.0,0.00017616,2]
[400436729,1767551448704,-2000.0,0.00017616,2]
[400436730,1767551448714,-2000.0,0.00017616,2]
[400436731,1767551448723,-507.75763086,0.00017616,2]
[400436732,1767551448732,-2000.0,0.00017616,2]
[400436733,1767551448741,-723.49501071,0.0001764,2]
[400436734,1767551448750,-168.0,0.00017651,2]
[400436735,1767551448759,-205.0,0.0001766,2]
[400436736,1767551448768,-152.11909412,0.00017675,2]
[400436737,1767551448777,-172.0,0.0001768,2]
[400436738,1767551448786,-205.0,0.00017735,2]
[400436739,1767551448795,-205.0,0.00017753,2]
[400436740,1767551448804,-299.0,0.00017764,2]
[400436741,1767551448813,-205.0,0.00017778,2]
[400436742,1767551448822,-205.0,0.000178,2]
[400436743,1767551448831,-3262.17975665,0.000178,2]
[400436744,1767551448841,-500.0,0.00017808,2]
[400436745,1767551448850,-500.0,0.00017808,2]
[400436746,1767551448860,-500.0,0.00017808,2]
[400436747,1767551448869,-500.0,0.00017808,2]
[400436748,1767551448878,-500.0,0.00017808,2]
[400436749,1767551448887,-500.0,0.00017808,2]
[400436750,1767551448898,-500.0,0.00017808,2]
[400436751,1767551448908,-500.0,0.00017808,2]
[400436752,1767551448918,-500.0,0.00017808,2]
[400436753,1767551448927,-500.0,0.00017808,2]
[400436754,1767551448937,-500.0,0.00017808,2]
[400436755,1767551448946,-500.0,0.00017808,2]
[400436756,1767551448955,-500.0,0.00017808,2]
[400436757,1767551448965,-625.58110642,0.00017808,2]
[400436758,1767551448974,-200.0,0.00017856,2]
[400436759,1767551448984,-25000.0,0.00017874,3]
[400436760,1767551448997,-25000.0,0.00017882,3]
[400436761,1767551449007,-25000.0,0.00017891,3]
[400436762,1767551449016,-1203.96202527,0.000179,2]
[400436763,1767551449028,-2695.94183627,0.000179,2]
[400436764,1767551449037,-205.95297079,0.000179,2]
[400436765,1767551449047,-25000.0,0.000179,3]
[400436766,1767551449057,-421.97377416,0.000179,3]
[400436767,1767551449069,-711.67521902,0.000179,2]
[400436768,1767551449078,-15582.9226001,0.000179,2]
[400436769,1767551449087,-480.28811924,0.000179,2]
[400436770,1767551449096,-500.0,0.000179,2]
[400436771,1767551449106,-500.0,0.000179,2]
[400436772,1767551449115,-500.0,0.000179,2]
[400436773,1767551449125,-500.0,0.000179,2]
[400436774,1767551449134,-500.0,0.000179,2]
[400436775,1767551449143,-500.0,0.000179,2]
[400436776,1767551449155,-500.0,0.000179,2]
[400436777,1767551449164,-500.0,0.000179,2]
[400436778,1767551449174,-500.0,0.000179,2]
[400436779,1767551449183,-500.0,0.000179,2]
[400436780,1767551449192,-500.0,0.000179,2]
[400436781,1767551449201,-500.0,0.000179,2]
[400436782,1767551449210,-500.0,0.000179,2]
[400436783,1767551449219,-500.0,0.000179,2]
[400436784,1767551449229,-500.0,0.000179,2]
[400436785,1767551449239,-500.0,0.000179,2]
[400436786,1767551449248,-500.0,0.000179,2]
[400436787,1767551449257,-500.0,0.000179,2]
[400436788,1767551449267,-500.0,0.000179,2]
[400436789,1767551449277,-500.0,0.000179,2]
[400436790,1767551449287,-205.0,0.00017913,2]
[400436791,1767551449297,-205.0,0.0001796,2]
[400436792,1767551449306,-166.66,0.00017963,2]
[400436793,1767551449315,-178.97,0.00017967,2]
[400436794,1767551449325,-1000.0,0.0001797,2]
[400436795,1767551449334,-611.74095214,0.0001797,2]
[400436796,1767551449343,-1000.0,0.0001797,2]
[400436797,1767551449352,-500.0,0.0001797,2]
[400436798,1767551449362,-1000.0,0.0001797,2]
[400436799,1767551449371,-500.0,0.0001797,2]
[400436800,1767551449380,-1000.0,0.0001797,2]
[400436801,1767551449390,-500.0,0.0001797,2]
[400436802,1767551449399,-150.0,0.00017973,2]
[400436803,1767551449409,-163.74776702,0.00017973,2]
[400436804,1767551449418,-300.0,0.00017999,2]
[400436805,1767551449427,-498691.17236527,0.00018,2]
[400436806,1767551449576,-1423.75678316,0.00018,2]
[400436807,1767551449588,-352.00649617,0.00018,2]
[400436808,1767551449613,-601.1372025,0.000179,2]
[400436809,1767551449624,-193.16757483,0.00018,2]
[400436810,1767551449635,-500.0,0.00018,2]
[400436811,1767551449646,-5000.0,0.00018,2]
[400436812,1767551449657,-6148.91822244,0.00018,2]
[400436813,1767551449668,-1960.82645047,0.00018,2]
[400436814,1767551449679,-4646.1776527,0.00018,2]
[400436815,1767551449690,-1923.51756997,0.00018,2]
[400436816,1767551477628,837.42,0.00013699,2]
[400436831,1767551530301,287.61899177,0.00014668,2]
[400436833,1767551561207,889428.10350075,0.0001502,2]
[400436834,1767551574433,-10000.01,0.0001502,2]
[400436835,1767551574601,-10000.01,0.0001502,2]
[400436844,1767551597901,-300.0,0.00015019,2]
[400436845,1767551597944,-300.0,0.00015019,2]
[400436846,1767551597984,-186.0,0.00015019,2]
[400436847,1767551598025,-1200.0,0.00015019,2]
[400436849,1767551611785,177.31565734,0.0001492,2]
[400436850,1767551623696,3072.348999,0.00014944,2]
[400436851,1767551643783,1075.5627485,0.0001492,2]
[400436862,1767551701462,1200.0,0.00015019,2]
[400436863,1767551701496,300.0,0.00015019,2]
[400436864,1767551712029,-4174.78259516,0.0001502,2]
[400436865,1767551712217,-10000.01,0.0001502,2]
[400436866,1767551712341,-10000.01,0.0001502,2]
[400436867,1767551712458,-10000.01,0.0001502,2]
[400436868,1767551712590,-10000.01,0.0001502,2]
[400436869,1767551712704,-10000.01,0.0001502,2]
[400436870,1767551712854,-10000.01,0.0001502,2]
[400436871,1767551713161,-10000.01,0.0001502,2]
[400436872,1767551713325,-10000.01,0.0001502,2]
[400436874,1767551722050,-3602.99609591,0.0001502,2]
[400436875,1767551722077,-2794.01780818,0.0001502,2]
[400436894,1767551860593,10000.01,0.0001492,2]
[400436895,1767551860621,10000.01,0.0001492,2]
[400436896,1767551860852,25000.0,0.0001492,2]
[400436934,1767552032677,-628.8133,0.0001482,2]
[400436935,1767552032708,-300.0,0.00014869,2]
[400436936,1767552032740,-1200.0,0.00014869,2]
[400436937,1767552032772,-273.0,0.00014869,2]
[400436938,1767552032800,-300.0,0.00014869,2]
[400436939,1767552032830,-689.84521891,0.0001487,2]
[400436940,1767552032859,-302.33857604,0.0001487,2]
[400436941,1767552033055,-4465.95883674,0.0001487,2]
[400436942,1767552046280,-1068.09232652,0.0001487,2]
[400436943,1767552046311,-163.26382346,0.0001487,2]
[400436944,1767552046342,-150.0,0.00014918,2]
[400436945,1767552046603,-300.0,0.00014918,2]
[400436946,1767552046633,-1200.0,0.00014919,2]
[400436947,1767552046665,-188.54684099,0.00014919,2]
[400436948,1767552046696,-500.0,0.00014919,2]
[400436949,1767552046726,-262.35744225,0.00014919,2]
[400436950,1767552046760,-500.0,0.00014919,2]
[400436951,1767552046792,-500.0,0.00014919,2]
[400436990,1767552161328,-532.7014,0.0001482,2]
[400436991,1767552161356,-250.0,0.00014833,2]
[400436992,1767552161384,-195.0,0.00014846,2]
[400436993,1767552161412,-250.0,0.00014869,2]
[400436994,1767552161640,-1600.0,0.00014873,2]
[400436995,1767552161671,-195.0,0.0001489,2]
[400436996,1767552161705,-150.0,0.00014918,2]
[400436997,1767552161738,-500.0,0.00014919,2]
[400436998,1767552161771,-500.0,0.00014919,2]
[400436999,1767552161804,-500.0,0.00014919,2]
[400437000,1767552161836,-154.6072,0.00014919,2]
[400437003,1767552170097,-183.78489306,0.0001479,2]
[400437004,1767552170131,-345.3928,0.00014919,2]
[400437005,1767552170163,-500.0,0.00014919,2]
[400437006,1767552170213,-500.0,0.00014919,2]
[400437007,1767552170247,-500.0,0.00014919,2]
[400437008,1767552170280,-500.0,0.00014919,2]
[400437009,1767552170312,-500.0,0.00014919,2]
[400437010,1767552170344,-500.0,0.00014919,2]
[400437011,1767552170376,-500.0,0.00014919,2]
[400437012,1767552170414,-500.0,0.00014919,2]
[400437013,1767552170448,-441.65461388,0.00014919,2]
[400437025,1767552226643,-4502.41281887,0.0001482,2]
[400437026,1767552227128,-995.18436226,0.0001482,2]
[400437027,1767552227162,-195.0,0.00014844,2]
[400437028,1767552227191,-250.0,0.00014844,2]
[400437029,1767552227225,-300.0,0.00014869,2]
[400437030,1767552227255,-195.0,0.00014889,2]
[400437031,1767552227289,-300.0,0.00014918,2]
[400437032,1767552227319,-1200.0,0.00014918,2]
[400437033,1767552227353,-58.34538612,0.00014919,2]
[400437034,1767552227389,-500.0,0.00014919,2]
[400437035,1767552227424,-500.0,0.00014919,2]
[400437036,1767552227457,-500.0,0.00014919,2]
[400437037,1767552227602,-500.0,0.00014919,2]
[400437038,1767552227635,-500.0,0.00014919,2]
[400437039,1767552227667,-500.0,0.00014919,2]
[400437040,1767552227699,-500.0,0.00014919,2]
[400437041,1767552227731,-500.0,0.00014919,2]
[400437042,1767552227762,-412.65919092,0.00014919,2]
[400437043,1767552227793,-500.0,0.00014919,2]
[400437044,1767552227836,-500.0,0.00014919,2]
[400437045,1767552227870,-500.0,0.00014919,2]
[400437046,1767552227901,-500.0,0.00014919,2]
[400437047,1767552228028,-500.0,0.00014919,2]
[400437048,1767552228066,-500.0,0.00014919,2]
[400437049,1767552228099,-500.0,0.00014919,2]
[400437050,1767552228130,-500.0,0.00014919,2]
[400437051,1767552228161,-500.0,0.00014919,2]
[400437052,1767552228194,-500.0,0.00014919,2]
[400437053,1767552228231,-500.0,0.00014919,2]
[400437054,1767552228260,-500.0,0.00014919,2]
[400437055,1767552228291,-500.0,0.00014919,2]
[400437056,1767552228338,-500.0,0.00014919,2]
[400437057,1767552233092,-500.0,0.00014919,2]
[400437058,1767552233124,-249.78329542,0.00014919,2]
[400437059,1767552234336,4760.0,0.000131,5]
[400437064,1767552253690,-162.51047503,0.0001482,2]
[400437065,1767552253718,-776.6986,0.0001482,2]
[400437066,1767552253747,-200.54812566,0.0001482,2]
[400437067,1767552253775,-195.0,0.00014823,2]
[400437068,1767552253803,-2500.0,0.00014826,2]
[400437069,1767552253830,-300.0,0.00014826,2]
[400437070,1767552253859,-300.0,0.00014832,2]
[400437071,1767552253887,-195.0,0.00014877,2]
[400437072,1767552253915,-300.0,0.00014914,2]
[400437073,1767552256238,-4243.10094774,0.0001492,2]
[400437077,1767552265281,5531.0,0.000131,5]
[400437078,1767552265504,5531.0,0.000128,3]
[400437079,1767552265738,8938.0,0.000126,2]
[400437080,1767552270396,-3452.365859,0.00014845,2]
[400437081,1767552270438,-3095.278282,0.0001492,2]
[400437083,1767552279405,-10000.01,0.0001492,2]
[400437091,1767552296608,240.0,0.000131,5]
[400437092,1767552296632,5264.07041965,0.000131,5]
[400437093,1767552296654,26.92958035,0.000131,5]
[400437094,1767552296832,5237.1408393,0.000128,3]
[400437095,1767552296859,293.8591607,0.000128,3]
[400437096,1767552297055,4190.0,0.000126,2]
[400437122,1767552417307,-3431.51673547,0.0001482,2]
[400437123,1767552417333,-3136.97652906,0.0001482,2]
[400437133,1767552430895,-195.0,0.0001487,2]
[400437134,1767552430923,-300.0,0.00014909,2]
[400437135,1767552430972,-9010.01,0.0001491,2]
[400437143,1767552450978,780.21125895,0.000125,5]
[400437144,1767552451001,4750.78874105,0.000125,5]
[400437145,1767552451203,513.2816786,0.000124,3]
[400437146,1767552451226,5017.7183214,0.000124,3]
[400437172,1767552478031,-200.0,0.00014842,2]
[400437174,1767552478062,-3773.57241395,0.0001491,2]
[400437176,1767552478091,-163.1260951,0.0001491,2]
[400437178,1767552478120,-163.1260951,0.0001491,2]
[400437179,1767552478149,-163.1260951,0.0001491,2]
[400437180,1767552478178,-200.0,0.00014911,2]
[400437181,1767552478207,-200.0,0.00014911,2]
[400437182,1767552478235,-123.1086015,0.00014911,2]
[400437183,1767552478356,-27.8913985,0.00014911,2]
[400437186,1767552488538,-151.0,0.00014911,2]
[400437187,1767552488568,-151.0,0.00014911,2]
[400437188,1767552488598,-151.0,0.00014911,2]
[400437189,1767552488627,-153.70166196,0.00014911,2]
[400437190,1767552488658,-151.0,0.00014911,2]
[400437191,1767552488688,-151.0,0.00014911,2]
[400437192,1767552488717,-151.0,0.00014911,2]
[400437193,1767552488746,-151.0,0.00014911,2]
[400437194,1767552488775,-151.0,0.00014911,2]
[400437195,1767552488803,-151.0,0.00014911,2]
[400437196,1767552488833,-200.01807784,0.00014911,2]
[400437197,1767552488862,-150.0,0.00014918,2]
[400437198,1767552488891,-488.74590428,0.00014919,2]
[400437199,1767552488919,-300.0,0.00014919,2]
[400437200,1767552488949,-1200.0,0.00014919,2]
[400437201,1767552488979,-500.0,0.00014919,2]
[400437202,1767552489009,-500.0,0.00014919,2]
[400437203,1767552489282,-297.07871184,0.00014919,2]
[400437210,1767552493972,-202.92128816,0.00014919,2]
[400437211,1767552494001,-500.0,0.00014919,2]
[400437212,1767552494030,-500.0,0.00014919,2]
[400437213,1767552494061,-500.0,0.00014919,2]
[400437214,1767552494090,-500.0,0.00014919,2]
[400437215,1767552494118,-500.0,0.00014919,2]
[400437216,1767552494148,-500.0,0.00014919,2]
[400437217,1767552494177,-500.0,0.00014919,2]
[400437218,1767552494205,-500.0,0.00014919,2]
[400437219,1767552494234,-252.09027213,0.00014919,2]
[400437220,1767552494263,-500.0,0.00014919,2]
[400437221,1767552494417,-500.0,0.00014919,2]
[400437222,1767552494445,-500.0,0.00014919,2]
[400437223,1767552494475,-300.0,0.00014919,2]
[400437224,1767552494504,-246.29146931,0.00014919,2]
[400437225,1767552494536,-500.0,0.00014919,2]
[400437226,1767552494572,-500.0,0.00014919,2]
[400437227,1767552494608,-500.0,0.00014919,2]
[400437228,1767552494642,-621.57007743,0.00014919,2]
[400437229,1767552494674,-500.0,0.00014919,2]
[400437230,1767552495127,-136.27834873,0.0001492,2]
[400437231,1767552495141,-1664.28690652,0.0001492,2]
[400437233,1767552501321,-10000.01,0.0001492,2]
[400437234,1767552506823,-10000.01,0.0001492,2]
[400437235,1767552513330,-164.85024225,0.0001482,2]
[400437236,1767552513376,-9670.3095155,0.0001492,2]
[400437237,1767552513508,-10000.01,0.0001492,2]
[400437238,1767552518903,-10000.01,0.0001492,2]
[400437239,1767552526865,-10000.01,0.0001492,2]
[400437252,1767552532081,-10000.01,0.0001492,2]
[400437261,1767552540125,-500.0,0.00014919,2]
[400437262,1767552540164,-500.0,0.00014919,2]
[400437263,1767552540200,-500.0,0.00014919,2]
[400437264,1767552540280,-7000.01,0.0001492,2]
[400437276,1767552566115,-151.0,0.00014917,2]
[400437277,1767552566137,-151.0,0.00014917,2]
[400437278,1767552566178,-300.0,0.00014919,2]
[400437279,1767552566203,-500.0,0.00014919,2]
[400437280,1767552566225,-522.96995118,0.00014919,2]
[400437281,1767552566246,-195.0,0.0001492,2]
[400437282,1767552566274,-3666.42267736,0.0001492,2]
[400437291,1767552600354,166.66,0.00014143,2]
[400437292,1767552600560,166.66,0.0001444,2]
[400437298,1767552631940,-166.66,0.00014738,2]
[400437299,1767552631951,-274.0,0.00014905,2]
[400437300,1767552631962,-570.46712288,0.00014905,2]
[400437301,1767552631971,-1200.0,0.00014918,2]
[400437302,1767552631980,-300.0,0.00014918,2]
[400437303,1767552631990,-300.0,0.00014918,2]
[400437304,1767552631999,-500.0,0.00014919,2]
[400437305,1767552632009,-500.0,0.00014919,2]
[400437306,1767552632018,-500.0,0.00014919,2]
[400437307,1767552632028,-500.0,0.00014919,2]
[400437308,1767552632038,-500.0,0.00014919,2]
[400437309,1767552632048,-500.0,0.00014919,2]
[400437310,1767552632059,-242.67287712,0.00014919,2]
[400437311,1767552632071,-257.32712288,0.00014919,2]
[400437312,1767552632081,-500.0,0.00014919,2]
[400437313,1767552632092,-500.0,0.00014919,2]
[400437314,1767552632101,-500.0,0.00014919,2]
[400437315,1767552632111,-500.0,0.00014919,2]
[400437316,1767552632120,-500.0,0.00014919,2]
[400437317,1767552632131,-137.79059162,0.00014919,2]
[400437318,1767552632146,-362.20940838,0.00014919,2]
[400437319,1767552632156,-500.0,0.00014919,2]
[400437320,1767552632166,-500.0,0.00014919,2]
[400437321,1767552632175,-500.0,0.00014919,2]
[400437322,1767552632185,-500.0,0.00014919,2]
[400437323,1767552632195,-500.0,0.00014919,2]
[400437324,1767552632204,-500.0,0.00014919,2]
[400437325,1767552632214,-500.0,0.00014919,2]
[400437327,1767552632223,-500.0,0.00014919,2]
[400437328,1767552632232,-293.63564427,0.00014919,2]
[400437330,1767552632243,-206.36435573,0.00014919,2]
[400437331,1767552632252,-359.05432728,0.00014919,2]
[400437343,1767552638018,-140.94567272,0.00014919,2]
[400437344,1767552638028,-451.52719637,0.00014919,2]
[400437345,1767552638123,-48.47280363,0.00014919,2]
[400437346,1767552638132,-338.75239123,0.00014919,2]
[400437347,1767552638142,-500.0,0.00014919,2]
[400437348,1767552638153,-500.0,0.00014919,2]
[400437349,1767552638162,-500.0,0.00014919,2]
[400437350,1767552638171,-1404.97877707,0.0001492,2]
[400437352,1767552638183,-1032.87429235,0.0001492,2]
[400437353,1767552638194,-258.39604565,0.0001492,2]
[400437359,1767552640114,-1402.59250029,0.0001492,2]
[400437360,1767552640445,-7844.34004746,0.0001492,2]
[400437361,1767552640506,-843581.04165933,0.0001492,2]
[400437362,1767552640516,-500.0,0.0001492,2]
[400437363,1767552640525,-200.0,0.0001492,2]
[400437364,1767552640534,-195.0,0.00014966,2]
[400437365,1767552640544,-578.28204782,0.00014986,2]
[400437366,1767552640553,-500.0,0.00014986,2]
[400437367,1767552640562,-500.0,0.00014986,2]
[400437368,1767552640572,-4475.9752,0.00014986,2]
[400437369,1767552640582,-1899.23071139,0.0001502,2]
[400437370,1767552640591,-229.88754356,0.0001502,2]
[400437371,1767552640600,-232.65885128,0.0001502,2]
[400437372,1767552640610,-200.0,0.0001502,2]
[400437373,1767552640619,-166.66,0.00015036,2]
[400437374,1767552640628,-500.0,0.00015119,2]
[400437375,1767552640638,-500.0,0.00015119,2]
[400437376,1767552640647,-500.0,0.00015119,2]
[400437377,1767552640656,-500.0,0.00015119,2]
[400437378,1767552640665,-500.0,0.00015119,2]
[400437379,1767552640674,-500.0,0.00015119,2]
[400437380,1767552640683,-500.0,0.00015119,2]
[400437381,1767552640692,-500.0,0.00015119,2]
[400437382,1767552640701,-597.7787886,0.00015119,2]
[400437383,1767552640711,-500.0,0.00015119,2]
[400437384,1767552640720,-500.0,0.00015119,2]
[400437385,1767552640728,-500.0,0.00015119,2]
[400437386,1767552640738,-200.0,0.0001517,2]
[400437387,1767552640748,-500.0,0.00015171,2]
[400437388,1767552640757,-500.0,0.00015171,2]
[400437389,1767552640767,-500.0,0.00015171,2]
[400437390,1767552640776,-500.0,0.00015171,2]
[400437391,1767552640786,-500.0,0.00015171,2]
[400437392,1767552640795,-500.0,0.00015171,2]
[400437393,1767552640805,-637.77412111,0.00015171,2]
[400437394,1767552640814,-354.11325635,0.00015171,2]
[400437395,1767552640824,-500.0,0.00015319,2]
[400437396,1767552640833,-200.0,0.00015322,2]
[400437397,1767552640843,-164.85024223,0.00015333,2]
[400437398,1767552640852,-166.66,0.00015334,2]
[400437399,1767552640861,-500.0,0.00015373,2]
[400437400,1767552640871,-500.0,0.00015373,2]
[400437401,1767552640880,-500.0,0.00015373,2]
[400437402,1767552640889,-173.10799489,0.00015373,2]
[400437403,1767552640898,-161.8055952,0.00015373,2]
[400437404,1767552640908,-500.0,0.00015373,2]
[400437405,1767552640917,-500.0,0.00015373,2]
[400437406,1767552640926,-500.0,0.00015373,2]
[400437407,1767552640936,-500.0,0.00015373,2]
[400437408,1767552640946,-177.01594385,0.00015373,2]
[400437409,1767552640955,-500.0,0.00015373,2]
[400437410,1767552640966,-500.9351107,0.00015373,2]
[400437411,1767552640976,-500.0,0.00015373,2]
[400437412,1767552640985,-500.0,0.00015373,2]
[400437413,1767552640994,-500.0,0.00015373,2]
[400437414,1767552641004,-500.0,0.00015373,2]
[400437415,1767552641014,-500.0,0.00015373,2]
[400437416,1767552641024,-500.0,0.00015373,2]
[400437417,1767552641033,-500.0,0.00015373,2]
[400437418,1767552641043,-563.66853913,0.00015373,2]
[400437419,1767552641059,-501.07232702,0.00015373,2]
[400437420,1767552641069,-172.94090925,0.00015373,2]
[400437421,1767552641079,-167.44841446,0.00015373,2]
[400437422,1767552641088,-500.93407438,0.00015373,2]
[400437423,1767552641098,-500.0,0.00015373,2]
[400437424,1767552641108,-500.0,0.00015373,2]
[400437426,1767552641117,-501.3047021,0.00015373,2]
[400437427,1767552641131,-500.79042778,0.00015373,2]
[400437428,1767552641141,-500.0,0.00015373,2]
[400437430,1767552641150,-500.0,0.00015373,2]
[400437431,1767552641159,-500.0,0.00015373,2]
[400437432,1767552641169,-500.0,0.00015373,2]
[400437433,1767552641179,-500.0,0.00015373,2]
[400437434,1767552641188,-500.0,0.00015373,2]
[400437435,1767552641198,-165.84262506,0.00015373,2]
[400437436,1767552641208,-164.04270598,0.00015373,2]
[400437437,1767552641218,-500.0,0.00015373,2]
[400437438,1767552641228,-500.65099109,0.00015373,2]
[400437439,1767552641237,-165.62195254,0.00015373,2]
[400437440,1767552641247,-537.11510591,0.00015373,2]
[400437441,1767552641257,-500.0,0.00015373,2]
[400437442,1767552641266,-500.0,0.00015373,2]
[400437443,1767552641276,-500.0,0.00015373,2]
[400437444,1767552641286,-500.0,0.00015373,2]
[400437445,1767552641295,-500.0,0.00015373,2]
[400437446,1767552641304,-216.79325996,0.00015373,2]
[400437447,1767552641314,-500.0,0.00015373,2]
[400437448,1767552641328,-165.75698725,0.00015373,2]
[400437449,1767552641337,-500.0,0.00015373,2]
[400437450,1767552641347,-500.0,0.00015373,2]
[400437451,1767552641356,-316.16920901,0.00015373,2]
[400437452,1767552641367,-1084.37,0.00015373,2]
[400437453,1767552641376,-27599.46872328,0.00015383,2]
[400437454,1767552641386,-500.0,0.00015393,2]
[400437455,1767552641399,-246.43,0.00015404,2]
[400437456,1767552641409,-207.19077534,0.00015463,4]